[Event "Late-Titled-Tuesday-Blitz-December-26-2023"]
[Site "Chess.com"]
[Date "2023.12.26"]
[Round "10"]
[White "NoHeThTo"]
[Black "Skatchkov_V"]
[Result "1/2-1/2"]
[WhiteElo "2692"]
[BlackElo "2598"]
[TimeControl "180+1"]
[EndTime "15:54:28 PST"]
[Termination "Game drawn - insufficient material"]

1. d4 {[%clk 0:03:00.9]} 1... Nf6 {[%clk 0:02:57.5]} 2. Nc3 {[%clk 0:03:01.1]}
2... d5 {[%clk 0:02:51.3]} 3. Bf4 {[%clk 0:03:01.2]} 3... a6 {[%clk 0:02:51]} 4.
e3 {[%clk 0:03:00.5]} 4... c5 {[%clk 0:02:51.1]} 5. dxc5 {[%clk 0:02:58.6]} 5...
e6 {[%clk 0:02:51.4]} 6. Bd3 {[%clk 0:02:58]} 6... Bxc5 {[%clk 0:02:50.8]} 7.
Nf3 {[%clk 0:02:58.3]} 7... Nc6 {[%clk 0:02:51.3]} 8. O-O {[%clk 0:02:58.5]}
8... Bb4 {[%clk 0:02:51.8]} 9. Ne2 {[%clk 0:02:55.2]} 9... O-O {[%clk
0:02:50.9]} 10. Ned4 {[%clk 0:02:54.4]} 10... Bd6 {[%clk 0:02:50.5]} 11. Nxc6
{[%clk 0:02:49.5]} 11... bxc6 {[%clk 0:02:48.2]} 12. c4 {[%clk 0:02:47.8]} 12...
Qe7 {[%clk 0:02:45.8]} 13. cxd5 {[%clk 0:02:46.5]} 13... Bxf4 {[%clk 0:02:38.5]}
14. exf4 {[%clk 0:02:45.2]} 14... cxd5 {[%clk 0:02:38.4]} 15. Nd4 {[%clk
0:02:42.6]} 15... Bd7 {[%clk 0:02:36.8]} 16. b3 {[%clk 0:02:41.1]} 16... Rfc8
{[%clk 0:02:35.2]} 17. Qd2 {[%clk 0:02:41]} 17... h6 {[%clk 0:02:33.8]} 18. Rfc1
{[%clk 0:02:40.1]} 18... Qa3 {[%clk 0:02:33.2]} 19. g3 {[%clk 0:02:33]} 19...
Kf8 {[%clk 0:02:31]} 20. Nf3 {[%clk 0:02:28]} 20... Bb5 {[%clk 0:02:28]} 21. Ne5
{[%clk 0:02:25.4]} 21... Bxd3 {[%clk 0:02:26.3]} 22. Nxd3 {[%clk 0:02:23.8]}
22... Ne4 {[%clk 0:02:24.9]} 23. Qe3 {[%clk 0:02:20.5]} 23... Rxc1+ {[%clk
0:02:17]} 24. Rxc1 {[%clk 0:02:09.9]} 24... Qxa2 {[%clk 0:02:10.6]} 25. Rc7
{[%clk 0:02:08]} 25... Qxb3 {[%clk 0:02:05.7]} 26. Rxf7+ {[%clk 0:02:07.1]}
26... Kg8 {[%clk 0:02:04.1]} 27. Re7 {[%clk 0:02:03.8]} 27... Qd1+ {[%clk
0:01:43.7]} 28. Kg2 {[%clk 0:02:02.6]} 28... Rd8 {[%clk 0:01:36.1]} 29. Qd4
{[%clk 0:01:58.9]} 29... Qg4 {[%clk 0:01:28.4]} 30. f3 {[%clk 0:01:56.6]} 30...
Qg6 {[%clk 0:01:19.6]} 31. Ne5 {[%clk 0:01:39.9]} 31... Qh5 {[%clk 0:00:59.7]}
32. g4 {[%clk 0:01:22.3]} 32... Qh4 {[%clk 0:00:57]} 33. Nc6 {[%clk 0:00:52.6]}
33... e5 {[%clk 0:00:57]} 34. Qe3 {[%clk 0:00:26.3]} 34... Rc8 {[%clk
0:00:50.2]} 35. Re6 {[%clk 0:00:25.1]} 35... exf4 {[%clk 0:00:40.8]} 36. Qe2
{[%clk 0:00:15.3]} 36... Rf8 {[%clk 0:00:33.3]} 37. Ne7+ {[%clk 0:00:13.4]}
37... Kh7 {[%clk 0:00:33.6]} 38. Nxd5 {[%clk 0:00:13]} 38... Ng5 {[%clk
0:00:28.3]} 39. Rxa6 {[%clk 0:00:10.8]} 39... Qh3+ {[%clk 0:00:28.3]} 40. Kf2
{[%clk 0:00:10.9]} 40... Qxh2+ {[%clk 0:00:28.4]} 41. Ke1 {[%clk 0:00:10.6]}
41... Re8 {[%clk 0:00:20.3]} 42. Nf6+ {[%clk 0:00:04.6]} 42... gxf6 {[%clk
0:00:14.6]} 43. Ra7+ {[%clk 0:00:04.6]} 43... Nf7 {[%clk 0:00:13.5]} 44. Rxf7+
{[%clk 0:00:04.1]} 44... Kg6 {[%clk 0:00:14]} 45. Qxe8 {[%clk 0:00:04.1]} 45...
Qg1+ {[%clk 0:00:14.7]} 46. Kd2 {[%clk 0:00:03.9]} 46... Qd4+ {[%clk 0:00:15]}
47. Kc2 {[%clk 0:00:04]} 47... Qc4+ {[%clk 0:00:15.1]} 48. Kd2 {[%clk
0:00:04.5]} 48... Qd4+ {[%clk 0:00:15.5]} 49. Ke2 {[%clk 0:00:03.5]} 49... Qc4+
{[%clk 0:00:12.7]} 50. Kf2 {[%clk 0:00:03]} 50... Qxf7 {[%clk 0:00:12.9]} 51.
Qe4+ {[%clk 0:00:02.7]} 51... Kg7 {[%clk 0:00:12.3]} 52. Qxf4 {[%clk 0:00:03.6]}
52... Qa7+ {[%clk 0:00:12.9]} 53. Kg3 {[%clk 0:00:04.1]} 53... Qa5 {[%clk
0:00:13.3]} 54. Qd6 {[%clk 0:00:03.6]} 54... Qe5+ {[%clk 0:00:12.6]} 55. Qxe5
{[%clk 0:00:03.5]} 55... fxe5 {[%clk 0:00:13.5]} 56. Kf2 {[%clk 0:00:04.3]}
56... Kf6 {[%clk 0:00:13.7]} 57. Ke3 {[%clk 0:00:05.2]} 57... Kf7 {[%clk
0:00:10.3]} 58. Ke4 {[%clk 0:00:05.5]} 58... Ke6 {[%clk 0:00:11]} 59. f4 {[%clk
0:00:05.9]} 59... exf4 {[%clk 0:00:11.3]} 60. Kxf4 {[%clk 0:00:06.8]} 60... Kf6
{[%clk 0:00:12.2]} 61. Kf3 {[%clk 0:00:07.4]} 61... Kg5 {[%clk 0:00:12.7]} 62.
Kg3 {[%clk 0:00:08.2]} 62... h5 {[%clk 0:00:13.6]} 63. gxh5 {[%clk 0:00:08.8]}
63... Kxh5 {[%clk 0:00:14.5]} 1/2-1/2

[Event "Late-Titled-Tuesday-Blitz-December-26-2023"]
[Site "Chess.com"]
[Date "2023.12.26"]
[Round "10"]
[White "h4parah5"]
[Black "Dedic8"]
[Result "1-0"]
[WhiteElo "2934"]
[BlackElo "2848"]
[TimeControl "180+1"]
[EndTime "15:54:29 PST"]
[Termination "h4parah5 won by resignation"]

1. Nf3 {[%clk 0:03:00.9]} 1... d5 {[%clk 0:02:55.5]} 2. e3 {[%clk 0:03:00.6]}
2... Nf6 {[%clk 0:02:54.3]} 3. c4 {[%clk 0:03:01.1]} 3... e6 {[%clk 0:02:54.3]}
4. b3 {[%clk 0:03:01.2]} 4... Bd6 {[%clk 0:02:53.4]} 5. Bb2 {[%clk 0:03:01.6]}
5... Nbd7 {[%clk 0:02:53.3]} 6. Nc3 {[%clk 0:03:01.2]} 6... O-O {[%clk 0:02:52]}
7. Be2 {[%clk 0:02:52.6]} 7... b6 {[%clk 0:02:52.4]} 8. cxd5 {[%clk 0:02:49.3]}
8... exd5 {[%clk 0:02:52]} 9. Nb5 {[%clk 0:02:49.1]} 9... Be7 {[%clk 0:02:49.3]}
10. Nbd4 {[%clk 0:02:41.9]} 10... Nb8 {[%clk 0:02:44.9]} 11. Ne5 {[%clk
0:02:40.7]} 11... Bd6 {[%clk 0:02:25.7]} 12. Nec6 {[%clk 0:02:22.8]} 12... Nxc6
{[%clk 0:02:25.8]} 13. Nxc6 {[%clk 0:02:22.2]} 13... Qe8 {[%clk 0:02:25.6]} 14.
Rc1 {[%clk 0:02:21.9]} 14... Ne4 {[%clk 0:02:06]} 15. O-O {[%clk 0:02:05.3]}
15... Bd7 {[%clk 0:02:00.9]} 16. Qc2 {[%clk 0:02:00.9]} 16... Qe6 {[%clk
0:01:42.9]} 17. d3 {[%clk 0:01:48.8]} 17... Nc5 {[%clk 0:01:14.3]} 18. Nd4
{[%clk 0:01:38.4]} 18... Qg6 {[%clk 0:01:12.2]} 19. Rfe1 {[%clk 0:01:20.1]}
19... Rae8 {[%clk 0:01:04.1]} 20. a3 {[%clk 0:01:01.3]} 20... a5 {[%clk
0:01:01.3]} 21. b4 {[%clk 0:00:58.2]} 21... axb4 {[%clk 0:01:01.3]} 22. axb4
{[%clk 0:00:59.1]} 22... Ne6 {[%clk 0:00:45.9]} 23. Qd2 {[%clk 0:00:58.7]} 23...
Ng5 {[%clk 0:00:42.4]} 24. Nf3 {[%clk 0:00:48.9]} 24... Bh3 {[%clk 0:00:30.6]}
25. g3 {[%clk 0:00:45.1]} 25... Bd7 {[%clk 0:00:18.7]} 26. Nxg5 {[%clk
0:00:41.7]} 26... Qxg5 {[%clk 0:00:19.2]} 27. Bf3 {[%clk 0:00:42.1]} 27... h5
{[%clk 0:00:16.9]} 28. Bc3 {[%clk 0:00:32]} 28... h4 {[%clk 0:00:15]} 29. e4
{[%clk 0:00:32.1]} 29... Qxd2 {[%clk 0:00:10.5]} 30. Bxd2 {[%clk 0:00:33]} 30...
dxe4 {[%clk 0:00:08.6]} 31. dxe4 {[%clk 0:00:32.1]} 31... h3 {[%clk 0:00:06.3]}
32. Bc3 {[%clk 0:00:29.8]} 32... f6 {[%clk 0:00:04.8]} 33. Bd1 {[%clk 0:00:27]}
33... Be6 {[%clk 0:00:05]} 34. f3 {[%clk 0:00:22.4]} 34... c5 {[%clk 0:00:04.6]}
35. bxc5 {[%clk 0:00:14.3]} 35... Bxc5+ {[%clk 0:00:04.8]} 36. Kf1 {[%clk
0:00:15]} 36... Ra8 {[%clk 0:00:05.4]} 37. Be2 {[%clk 0:00:11.8]} 37... Ra2
{[%clk 0:00:05.4]} 38. Ra1 {[%clk 0:00:11.8]} 38... Rc2 {[%clk 0:00:05.3]} 39.
Rec1 {[%clk 0:00:11.3]} 39... Rxc1+ {[%clk 0:00:05.5]} 40. Rxc1 {[%clk
0:00:11.4]} 40... Ra8 {[%clk 0:00:05.7]} 41. Ra1 {[%clk 0:00:11.6]} 41... Rc8
{[%clk 0:00:05.6]} 42. Be1 {[%clk 0:00:10.5]} 42... Rd8 {[%clk 0:00:03.5]} 43.
Bf2 {[%clk 0:00:10]} 43... Bxf2 {[%clk 0:00:03.4]} 44. Kxf2 {[%clk 0:00:10]}
44... Rc8 {[%clk 0:00:04.2]} 45. Rb1 {[%clk 0:00:09.6]} 45... Rc2 {[%clk
0:00:04.2]} 46. Ke3 {[%clk 0:00:09.7]} 46... Bc4 {[%clk 0:00:04.3]} 47. Bxc4+
{[%clk 0:00:07.8]} 47... Rxc4 {[%clk 0:00:05.2]} 48. Rb2 {[%clk 0:00:06.6]}
48... Rc6 {[%clk 0:00:04.2]} 49. Kf4 {[%clk 0:00:05.7]} 49... Kf7 {[%clk
0:00:03]} 50. Kg4 {[%clk 0:00:06]} 50... g5 {[%clk 0:00:02.5]} 51. Kxh3 {[%clk
0:00:06.2]} 51... Ke6 {[%clk 0:00:03]} 52. Kg4 {[%clk 0:00:06.7]} 52... Ke5
{[%clk 0:00:03.2]} 53. h4 {[%clk 0:00:07.2]} 53... gxh4 {[%clk 0:00:03.7]} 54.
gxh4 {[%clk 0:00:08.1]} 54... Kd4 {[%clk 0:00:03]} 55. h5 {[%clk 0:00:08.4]}
55... Kc3 {[%clk 0:00:03.3]} 56. Rb1 {[%clk 0:00:08.3]} 56... Kc2 {[%clk
0:00:03.1]} 57. Rb5 {[%clk 0:00:08.3]} 57... Kc3 {[%clk 0:00:03.5]} 58. h6
{[%clk 0:00:08.3]} 58... Kc4 {[%clk 0:00:04]} 59. h7 {[%clk 0:00:07.7]} 59...
Kxb5 {[%clk 0:00:04.1]} 60. h8=Q {[%clk 0:00:07.6]} 60... Kc4 {[%clk 0:00:04.6]}
61. Qg8+ {[%clk 0:00:07.7]} 61... Kc5 {[%clk 0:00:04.7]} 62. Qd5+ {[%clk
0:00:07.5]} 1-0

[Event "Late-Titled-Tuesday-Blitz-December-26-2023"]
[Site "Chess.com"]
[Date "2023.12.26"]
[Round "10"]
[White "thechesscorner64"]
[Black "Zampronha1971"]
[Result "1-0"]
[WhiteElo "2445"]
[BlackElo "2327"]
[TimeControl "180+1"]
[EndTime "15:54:34 PST"]
[Termination "thechesscorner64 won on time"]

1. e4 {[%clk 0:03:00.9]} 1... c5 {[%clk 0:02:56.9]} 2. Nf3 {[%clk 0:03:00.4]}
2... e6 {[%clk 0:02:57.2]} 3. c3 {[%clk 0:02:57.1]} 3... Nf6 {[%clk 0:02:56]} 4.
e5 {[%clk 0:02:57.1]} 4... Nd5 {[%clk 0:02:55.7]} 5. d4 {[%clk 0:02:57.3]} 5...
cxd4 {[%clk 0:02:56.6]} 6. cxd4 {[%clk 0:02:57.1]} 6... b6 {[%clk 0:02:56.7]} 7.
Nc3 {[%clk 0:02:53.6]} 7... Nxc3 {[%clk 0:02:55.7]} 8. bxc3 {[%clk 0:02:53.2]}
8... Qc7 {[%clk 0:02:56.6]} 9. Bd2 {[%clk 0:02:52.5]} 9... Bb7 {[%clk
0:02:57.5]} 10. Bd3 {[%clk 0:02:51.5]} 10... d6 {[%clk 0:02:58]} 11. O-O {[%clk
0:02:47.7]} 11... Nd7 {[%clk 0:02:58]} 12. exd6 {[%clk 0:02:44.2]} 12... Bxd6
{[%clk 0:02:58.9]} 13. h3 {[%clk 0:02:40.5]} 13... O-O {[%clk 0:02:55.1]} 14.
Rc1 {[%clk 0:02:32.2]} 14... Rac8 {[%clk 0:02:52.1]} 15. c4 {[%clk 0:02:17.2]}
15... Bf4 {[%clk 0:02:50.5]} 16. Be3 {[%clk 0:02:08.5]} 16... Nf6 {[%clk
0:02:44.4]} 17. Qd2 {[%clk 0:02:06.3]} 17... Bxe3 {[%clk 0:02:38]} 18. Qxe3
{[%clk 0:02:07.2]} 18... Rfd8 {[%clk 0:02:35.3]} 19. Rfd1 {[%clk 0:02:01.3]}
19... Bxf3 {[%clk 0:02:01.8]} 20. Qxf3 {[%clk 0:01:58.6]} 20... Rd6 {[%clk
0:01:58]} 21. c5 {[%clk 0:01:53.9]} 21... bxc5 {[%clk 0:01:55.2]} 22. Rxc5
{[%clk 0:01:51.8]} 22... Qd8 {[%clk 0:01:55.2]} 23. Rxc8 {[%clk 0:01:35.7]}
23... Qxc8 {[%clk 0:01:54.2]} 24. Qf4 {[%clk 0:01:17.7]} 24... Qd8 {[%clk
0:01:52.4]} 25. Bc2 {[%clk 0:01:12.9]} 25... Rd5 {[%clk 0:01:42.6]} 26. Bb3
{[%clk 0:01:01.8]} 26... e5 {[%clk 0:01:41.9]} 27. Qf5 {[%clk 0:00:55]} 27...
Rxd4 {[%clk 0:01:38.9]} 28. Rc1 {[%clk 0:00:55.3]} 28... Qe7 {[%clk 0:01:24.6]}
29. Rc8+ {[%clk 0:00:50.4]} 29... Rd8 {[%clk 0:01:24.5]} 30. Rxd8+ {[%clk
0:00:44.1]} 30... Qxd8 {[%clk 0:01:24.6]} 31. Qxe5 {[%clk 0:00:44.6]} 31... h6
{[%clk 0:00:56.2]} 32. Qc5 {[%clk 0:00:43.3]} 32... Qd7 {[%clk 0:00:46.9]} 33.
Kh2 {[%clk 0:00:39.4]} 33... g6 {[%clk 0:00:46.9]} 34. g3 {[%clk 0:00:39.1]}
34... Kg7 {[%clk 0:00:47.2]} 35. Qc3 {[%clk 0:00:38.1]} 35... g5 {[%clk
0:00:44]} 36. Kg2 {[%clk 0:00:36.8]} 36... Kg6 {[%clk 0:00:39.8]} 37. Bc2+
{[%clk 0:00:36.9]} 37... Kg7 {[%clk 0:00:40.1]} 38. Bb3 {[%clk 0:00:37.1]} 38...
Kg6 {[%clk 0:00:40.4]} 39. Qe5 {[%clk 0:00:35.9]} 39... Qb7+ {[%clk 0:00:31]}
40. Kh2 {[%clk 0:00:35.7]} 40... Qe4 {[%clk 0:00:25.4]} 41. Qc7 {[%clk
0:00:27.9]} 41... Qe8 {[%clk 0:00:08.6]} 42. Qxa7 {[%clk 0:00:21.8]} 42... Ne4
{[%clk 0:00:05.9]} 43. Bc2 {[%clk 0:00:20.4]} 43... f5 {[%clk 0:00:06]} 44. Qb6+
{[%clk 0:00:19.6]} 44... Kg7 {[%clk 0:00:05.6]} 45. Qc7+ {[%clk 0:00:19.4]}
45... Kg6 {[%clk 0:00:05.6]} 46. Qd6+ {[%clk 0:00:19.1]} 46... Kg7 {[%clk
0:00:05.5]} 47. Qd4+ {[%clk 0:00:18.5]} 47... Kg6 {[%clk 0:00:05.8]} 48. Kg2
{[%clk 0:00:17.6]} 48... Qa8 {[%clk 0:00:04.3]} 49. Bxe4 {[%clk 0:00:14.7]}
49... fxe4 {[%clk 0:00:04]} 50. Qd6+ {[%clk 0:00:14.4]} 50... Kf5 {[%clk
0:00:03.3]} 51. Qd7+ {[%clk 0:00:14.1]} 51... Kf6 {[%clk 0:00:03.3]} 52. Qd6+
{[%clk 0:00:13.9]} 52... Kg7 {[%clk 0:00:03.7]} 53. Qd4+ {[%clk 0:00:14]} 53...
Kg6 {[%clk 0:00:03.9]} 54. Qb6+ {[%clk 0:00:11.3]} 54... Kg7 {[%clk 0:00:03.9]}
55. Qb2+ {[%clk 0:00:10.8]} 55... Kg6 {[%clk 0:00:03.9]} 56. Kh2 {[%clk
0:00:11.2]} 56... Qd5 {[%clk 0:00:03.4]} 57. a3 {[%clk 0:00:10.1]} 57... Qd3
{[%clk 0:00:01.7]} 58. Qb7 {[%clk 0:00:09.7]} 58... Kf5 {[%clk 0:00:01.3]} 59.
Qc8+ {[%clk 0:00:09.5]} 59... Kg6 {[%clk 0:00:01.1]} 60. Qe6+ {[%clk 0:00:09.3]}
60... Kg7 {[%clk 0:00:01.7]} 61. Qe5+ {[%clk 0:00:09.7]} 61... Kg6 {[%clk
0:00:02]} 62. h4 {[%clk 0:00:07.6]} 62... Qxa3 {[%clk 0:00:01.4]} 63. Qe6+
{[%clk 0:00:07.5]} 63... Kg7 {[%clk 0:00:02]} 64. h5 {[%clk 0:00:06.9]} 1-0

[Event "Late-Titled-Tuesday-Blitz-December-26-2023"]
[Site "Chess.com"]
[Date "2023.12.26"]
[Round "10"]
[White "MikeSailer"]
[Black "SmirnovTimofey2000"]
[Result "1-0"]
[WhiteElo "2194"]
[BlackElo "1987"]
[TimeControl "180+1"]
[EndTime "15:54:36 PST"]
[Termination "MikeSailer won by checkmate"]

1. d4 {[%clk 0:03:00.3]} 1... d5 {[%clk 0:02:55.6]} 2. Bf4 {[%clk 0:03:00.5]}
2... Bf5 {[%clk 0:02:55.2]} 3. e3 {[%clk 0:02:58.5]} 3... e6 {[%clk 0:02:54.9]}
4. Nf3 {[%clk 0:02:57.3]} 4... Nf6 {[%clk 0:02:55.2]} 5. Nc3 {[%clk 0:02:55.3]}
5... Be7 {[%clk 0:02:47.9]} 6. Ne5 {[%clk 0:02:53]} 6... Nbd7 {[%clk 0:02:45.8]}
7. g4 {[%clk 0:02:52.1]} 7... Bg6 {[%clk 0:02:33.2]} 8. h4 {[%clk 0:02:49.9]}
8... h6 {[%clk 0:02:22.4]} 9. Nxg6 {[%clk 0:02:48.7]} 9... fxg6 {[%clk
0:02:23.3]} 10. Bd3 {[%clk 0:02:48.8]} 10... Nf8 {[%clk 0:02:13.7]} 11. Nb5
{[%clk 0:02:37]} 11... Bd6 {[%clk 0:02:06.3]} 12. Nxd6+ {[%clk 0:02:31.5]} 12...
cxd6 {[%clk 0:02:07.2]} 13. c3 {[%clk 0:02:31.3]} 13... Rc8 {[%clk 0:01:51.3]}
14. f3 {[%clk 0:02:26.3]} 14... Qc7 {[%clk 0:01:40.3]} 15. Qa4+ {[%clk 0:02:08]}
15... N6d7 {[%clk 0:01:25.8]} 16. Qxa7 {[%clk 0:02:04.7]} 16... e5 {[%clk
0:01:23.6]} 17. Bg3 {[%clk 0:01:56.8]} 17... e4 {[%clk 0:01:22]} 18. fxe4 {[%clk
0:01:27.7]} 18... Nb6 {[%clk 0:01:20.6]} 19. Qa3 {[%clk 0:01:05.3]} 19... dxe4
{[%clk 0:01:14.4]} 20. Bxe4 {[%clk 0:01:01]} 20... Nc4 {[%clk 0:01:08.4]} 21.
Qa4+ {[%clk 0:00:47.4]} 21... Nd7 {[%clk 0:01:03.4]} 22. Bxg6+ {[%clk 0:00:44]}
22... Kd8 {[%clk 0:01:00.2]} 23. O-O {[%clk 0:00:34.3]} 23... Nxe3 {[%clk
0:00:46.7]} 24. Rf7 {[%clk 0:00:24.6]} 24... Qc6 {[%clk 0:00:37.4]} 25. Qxc6
{[%clk 0:00:22.8]} 25... Rxc6 {[%clk 0:00:34.1]} 26. d5 {[%clk 0:00:08.1]} 26...
Rb6 {[%clk 0:00:28.2]} 27. Re1 {[%clk 0:00:07.5]} 27... Nxg4 {[%clk 0:00:25.9]}
28. Ree7 {[%clk 0:00:07.6]} 28... Nge5 {[%clk 0:00:18.1]} 29. Rxg7 {[%clk
0:00:07.3]} 29... Nxg6 {[%clk 0:00:15.5]} 30. Rxd7+ {[%clk 0:00:06.1]} 30... Ke8
{[%clk 0:00:13.2]} 31. Bxd6 {[%clk 0:00:04.4]} 31... Nf8 {[%clk 0:00:07.1]} 32.
Rxb7 {[%clk 0:00:03.5]} 32... Rxd6 {[%clk 0:00:05.8]} 33. Rge7+ {[%clk
0:00:03.7]} 33... Kd8 {[%clk 0:00:05.3]} 34. Rf7 {[%clk 0:00:03.6]} 34... Rd7
{[%clk 0:00:04]} 35. Rb8+ {[%clk 0:00:03.2]} 35... Kc7 {[%clk 0:00:03.1]} 36.
Rbxf8 {[%clk 0:00:03.5]} 36... Rg8+ {[%clk 0:00:01]} 37. Rxg8 {[%clk 0:00:03.8]}
37... Rxf7 {[%clk 0:00:01.9]} 38. Rg3 {[%clk 0:00:03.7]} 38... Rd7 {[%clk
0:00:01.6]} 39. Rd3 {[%clk 0:00:04.3]} 39... Kb6 {[%clk 0:00:01.9]} 40. d6
{[%clk 0:00:04.8]} 40... Kc6 {[%clk 0:00:02.1]} 41. b3 {[%clk 0:00:05.1]} 41...
Kc5 {[%clk 0:00:02]} 42. c4 {[%clk 0:00:05.7]} 42... Rg7+ {[%clk 0:00:02]} 43.
Kf2 {[%clk 0:00:06.1]} 43... Rd7 {[%clk 0:00:02.9]} 44. Ke2 {[%clk 0:00:06.6]}
44... Rd8 {[%clk 0:00:02.6]} 45. Kd2 {[%clk 0:00:07.3]} 45... Ra8 {[%clk
0:00:02.7]} 46. Kc3 {[%clk 0:00:07.5]} 46... Rd8 {[%clk 0:00:02.5]} 47. d7
{[%clk 0:00:08.1]} 47... Kc6 {[%clk 0:00:02.3]} 48. b4 {[%clk 0:00:08.8]} 48...
Kc7 {[%clk 0:00:02.3]} 49. c5 {[%clk 0:00:09.3]} 49... Ra8 {[%clk 0:00:02.5]}
50. Kc4 {[%clk 0:00:08.8]} 50... Rd8 {[%clk 0:00:03.4]} 51. b5 {[%clk
0:00:09.2]} 51... Kb7 {[%clk 0:00:03.5]} 52. a4 {[%clk 0:00:09.2]} 52... Kc7
{[%clk 0:00:03.7]} 53. a5 {[%clk 0:00:08.9]} 53... Ra8 {[%clk 0:00:04]} 54.
d8=Q+ {[%clk 0:00:09.1]} 54... Rxd8 {[%clk 0:00:04.4]} 55. Rxd8 {[%clk
0:00:09.5]} 55... Kxd8 {[%clk 0:00:05.3]} 56. Kd5 {[%clk 0:00:10]} 56... Kc7
{[%clk 0:00:05.8]} 57. a6 {[%clk 0:00:10.4]} 57... Kb8 {[%clk 0:00:05.9]} 58.
Kc6 {[%clk 0:00:10.8]} 58... Ka7 {[%clk 0:00:06.8]} 59. b6+ {[%clk 0:00:10.1]}
59... Ka8 {[%clk 0:00:06.5]} 60. Kc7 {[%clk 0:00:09.1]} 60... h5 {[%clk
0:00:06.6]} 61. b7+ {[%clk 0:00:09.5]} 61... Ka7 {[%clk 0:00:07]} 62. b8=Q+
{[%clk 0:00:09.7]} 62... Kxa6 {[%clk 0:00:06.4]} 63. Qb6# {[%clk 0:00:10]} 1-0

[Event "Late-Titled-Tuesday-Blitz-December-26-2023"]
[Site "Chess.com"]
[Date "2023.12.26"]
[Round "10"]
[White "German_Bazeev"]
[Black "rasmussvane"]
[Result "1-0"]
[WhiteElo "2862"]
[BlackElo "2913"]
[TimeControl "180+1"]
[EndTime "15:54:40 PST"]
[Termination "German_Bazeev won by checkmate"]

1. c4 {[%clk 0:03:00.9]} 1... e6 {[%clk 0:02:59.7]} 2. d4 {[%clk 0:02:58.4]}
2... d5 {[%clk 0:03:00.6]} 3. Nf3 {[%clk 0:02:58.6]} 3... a6 {[%clk 0:03:00.9]}
4. Qc2 {[%clk 0:02:44.6]} 4... Nf6 {[%clk 0:02:59.3]} 5. g3 {[%clk 0:02:44.2]}
5... dxc4 {[%clk 0:02:59.5]} 6. Qxc4 {[%clk 0:02:39.1]} 6... b5 {[%clk 0:03:00]}
7. Qc2 {[%clk 0:02:38.1]} 7... Bb7 {[%clk 0:03:00.6]} 8. Bg2 {[%clk 0:02:37.6]}
8... Nbd7 {[%clk 0:03:01.1]} 9. O-O {[%clk 0:02:35.1]} 9... c5 {[%clk
0:03:01.4]} 10. Bg5 {[%clk 0:02:16.3]} 10... Rc8 {[%clk 0:02:59.9]} 11. Qd1
{[%clk 0:01:37]} 11... Qb6 {[%clk 0:02:54.8]} 12. a4 {[%clk 0:01:35.3]} 12...
Bxf3 {[%clk 0:02:40.5]} 13. Bxf3 {[%clk 0:01:36.2]} 13... cxd4 {[%clk
0:02:40.5]} 14. axb5 {[%clk 0:01:36.8]} 14... axb5 {[%clk 0:02:40.7]} 15. Nd2
{[%clk 0:01:33.9]} 15... Be7 {[%clk 0:02:30.9]} 16. Nb3 {[%clk 0:01:21.9]} 16...
e5 {[%clk 0:02:31.4]} 17. e3 {[%clk 0:01:09]} 17... e4 {[%clk 0:02:16]} 18. Bxf6
{[%clk 0:00:59.6]} 18... Nxf6 {[%clk 0:02:14.2]} 19. Bg4 {[%clk 0:00:59.9]}
19... Rd8 {[%clk 0:02:01.5]} 20. Nxd4 {[%clk 0:00:59.2]} 20... Bc5 {[%clk
0:02:00.7]} 21. Be2 {[%clk 0:00:54.9]} 21... O-O {[%clk 0:01:56]} 22. Qb3 {[%clk
0:00:54.7]} 22... Bxd4 {[%clk 0:01:56.5]} 23. exd4 {[%clk 0:00:55.6]} 23... Rxd4
{[%clk 0:01:49]} 24. Rfd1 {[%clk 0:00:47.4]} 24... b4 {[%clk 0:01:44.5]} 25.
Rxd4 {[%clk 0:00:46.3]} 25... Qxd4 {[%clk 0:01:45.4]} 26. Rd1 {[%clk 0:00:47.1]}
26... Qc5 {[%clk 0:01:44]} 27. Qc4 {[%clk 0:00:47.3]} 27... Qa5 {[%clk
0:01:19.5]} 28. Qd4 {[%clk 0:00:36.4]} 28... h5 {[%clk 0:01:15.9]} 29. h4 {[%clk
0:00:30.9]} 29... Re8 {[%clk 0:01:15]} 30. Qe3 {[%clk 0:00:22.8]} 30... Qe5
{[%clk 0:01:12.5]} 31. b3 {[%clk 0:00:21]} 31... Nd5 {[%clk 0:01:11.5]} 32. Qc5
{[%clk 0:00:18.9]} 32... Nc3 {[%clk 0:00:49.6]} 33. Qxe5 {[%clk 0:00:19.8]}
33... Rxe5 {[%clk 0:00:50.1]} 34. Rd8+ {[%clk 0:00:19.4]} 34... Kh7 {[%clk
0:00:50.7]} 35. Bc4 {[%clk 0:00:19]} 35... f6 {[%clk 0:00:45.8]} 36. Rb8 {[%clk
0:00:17.5]} 36... Ra5 {[%clk 0:00:28.4]} 37. Rxb4 {[%clk 0:00:16.7]} 37... Ra1+
{[%clk 0:00:29]} 38. Kg2 {[%clk 0:00:17.3]} 38... Ra2 {[%clk 0:00:29.7]} 39. Kg1
{[%clk 0:00:15.3]} 39... Kg6 {[%clk 0:00:20.9]} 40. Rb7 {[%clk 0:00:13.4]} 40...
Nd1 {[%clk 0:00:18.3]} 41. b4 {[%clk 0:00:09]} 41... Nxf2 {[%clk 0:00:17.4]} 42.
Bxa2 {[%clk 0:00:08.6]} 42... e3 {[%clk 0:00:09.8]} 43. Bf7+ {[%clk 0:00:09.5]}
43... Kf5 {[%clk 0:00:10]} 44. Kf1 {[%clk 0:00:09.5]} 44... Ne4 {[%clk
0:00:09.8]} 45. Ke2 {[%clk 0:00:07.8]} 45... Nd6 {[%clk 0:00:10.3]} 46. Rd7
{[%clk 0:00:06.2]} 46... Ke5 {[%clk 0:00:08.3]} 47. Rxd6 {[%clk 0:00:06.3]}
47... Kxd6 {[%clk 0:00:09.2]} 48. Bxh5 {[%clk 0:00:06.9]} 48... Kd5 {[%clk
0:00:07.8]} 49. Be8 {[%clk 0:00:07.1]} 49... Kc4 {[%clk 0:00:08.2]} 50. b5
{[%clk 0:00:07.5]} 50... Kc5 {[%clk 0:00:09]} 51. Kxe3 {[%clk 0:00:07.9]} 51...
Kb6 {[%clk 0:00:09.9]} 52. Kf4 {[%clk 0:00:08.4]} 52... Kc7 {[%clk 0:00:10.6]}
53. h5 {[%clk 0:00:08.6]} 53... Kd6 {[%clk 0:00:10.7]} 54. Kf5 {[%clk
0:00:09.5]} 54... Ke7 {[%clk 0:00:11.2]} 55. Kg6 {[%clk 0:00:10.4]} 55... Kf8
{[%clk 0:00:11.8]} 56. b6 {[%clk 0:00:10.6]} 56... Ke7 {[%clk 0:00:12.4]} 57. b7
{[%clk 0:00:11.5]} 57... Kd8 {[%clk 0:00:13.1]} 58. Bb5 {[%clk 0:00:12.4]} 58...
Ke7 {[%clk 0:00:13.7]} 59. Bc4 {[%clk 0:00:13.3]} 59... Kd6 {[%clk 0:00:14.3]}
60. Bd3 {[%clk 0:00:14.2]} 60... Kc5 {[%clk 0:00:15]} 61. Be2 {[%clk 0:00:15.1]}
61... Kd4 {[%clk 0:00:15.8]} 62. Bf1 {[%clk 0:00:16]} 62... Ke3 {[%clk
0:00:16.6]} 63. g4 {[%clk 0:00:16.9]} 63... Kf2 {[%clk 0:00:17.5]} 64. Kf5
{[%clk 0:00:17.8]} 64... Kg1 {[%clk 0:00:18.2]} 65. Kf4 {[%clk 0:00:18.7]} 65...
Kf2 {[%clk 0:00:19]} 66. Kf5 {[%clk 0:00:18.5]} 66... Ke1 {[%clk 0:00:19.9]} 67.
b8=Q {[%clk 0:00:18.2]} 67... Kf2 {[%clk 0:00:20.8]} 68. Qc7 {[%clk 0:00:18.8]}
68... Kg1 {[%clk 0:00:21.7]} 69. Qxg7 {[%clk 0:00:19.5]} 69... Kh2 {[%clk
0:00:22.6]} 70. Qxf6 {[%clk 0:00:20]} 70... Kh1 {[%clk 0:00:23.5]} 71. Bb5
{[%clk 0:00:19.7]} 71... Kh2 {[%clk 0:00:24.4]} 72. Ke6 {[%clk 0:00:20.3]} 72...
Kg1 {[%clk 0:00:25.3]} 73. Kd7 {[%clk 0:00:21.2]} 73... Kg2 {[%clk 0:00:25.7]}
74. Kc7 {[%clk 0:00:22.1]} 74... Kg3 {[%clk 0:00:26.6]} 75. Kb7 {[%clk 0:00:23]}
75... Kxg4 {[%clk 0:00:27.5]} 76. Ka7 {[%clk 0:00:23.9]} 76... Kxh5 {[%clk
0:00:28.4]} 77. Ka8 {[%clk 0:00:24.8]} 77... Kg4 {[%clk 0:00:29.1]} 78. Bc6
{[%clk 0:00:25.7]} 78... Kh5 {[%clk 0:00:30]} 79. Qg7 {[%clk 0:00:20.9]} 79...
Kh4 {[%clk 0:00:30.4]} 80. Kb7 {[%clk 0:00:19.3]} 80... Kh3 {[%clk 0:00:31.3]}
81. Kc7 {[%clk 0:00:18.6]} 81... Kh2 {[%clk 0:00:32.2]} 82. Qg2# {[%clk
0:00:16.3]} 1-0